fUSD/lending_fUSD_20240521
["ID","MTS","AMOUNT","RATE_DAILY","PERIOD"]
[327694285,1716323450393,-500.0,0.00030684,6]
[327694287,1716323450404,-500.0,0.00030684,6]
[327694289,1716323450414,-151.0,0.00030684,7]
[327694291,1716323450425,-151.0,0.00030684,7]
[327694293,1716323450435,-500.0,0.00030684,6]
[327694295,1716323450446,-448.41366642,0.00030684,2]
[327694298,1716323450456,-500.0,0.00030684,6]
[327694300,1716323450466,-500.0,0.00030684,6]
[327694302,1716323450476,-500.0,0.00030684,6]
[327694304,1716323450486,-500.0,0.00030684,6]
[327694306,1716323450496,-500.0,0.00030684,6]
[327694308,1716323450507,-500.0,0.00030684,6]
[327694310,1716323450517,-234.42861446,0.00030684,6]
[327694312,1716323450528,-500.0,0.00030684,6]
[327694314,1716323450537,-500.0,0.00030684,6]
[327694317,1716323450548,-500.0,0.00030684,6]
[327694319,1716323450558,-409.97524316,0.00030684,6]
[327694321,1716323450568,-500.0,0.00030684,6]
[327694323,1716323450580,-151.0,0.00030684,7]
[327694325,1716323450591,-500.0,0.00030684,6]
[327694327,1716323450601,-500.0,0.00030684,6]
[327694329,1716323450610,-500.0,0.00030684,6]
[327694331,1716323450621,-500.0,0.00030684,6]
[327694332,1716323450631,-500.0,0.00030684,6]
[327694334,1716323450641,-500.0,0.00030684,6]
[327694335,1716323450651,-500.0,0.00030684,6]
[327694337,1716323450661,-500.0,0.00030684,6]
[327694338,1716323450671,-500.0,0.00030684,6]
[327694340,1716323450681,-500.0,0.00030684,6]
[327694341,1716323450691,-500.0,0.00030684,6]
[327694343,1716323450701,-500.0,0.00030684,6]
[327694344,1716323450711,-500.0,0.00030684,6]
[327694346,1716323450721,-500.0,0.00030684,6]
[327694348,1716323450731,-500.0,0.00030684,6]
[327694349,1716323450741,-500.0,0.00030684,6]
[327694351,1716323450751,-531.65,0.00030684,6]
[327694352,1716323450761,-500.0,0.00030684,6]
[327694354,1716323450771,-500.0,0.00030684,6]
[327694356,1716323450780,-500.0,0.00030684,6]
[327694357,1716323450792,-500.0,0.00030684,6]
[327694359,1716323450802,-500.0,0.00030684,6]
[327694360,1716323450812,-543.85,0.00030684,6]
[327694362,1716323450822,-537.59,0.00030684,6]
[327694364,1716323450833,-500.0,0.00030684,6]
[327694365,1716323450843,-500.0,0.00030684,6]
[327694367,1716323450853,-1646.0,0.00030684,6]
[327694369,1716323450863,-500.0,0.00030684,6]
[327694370,1716323450873,-500.0,0.00030684,6]
[327694372,1716323450883,-151.0,0.00030684,7]
[327694374,1716323450893,-281.08748407,0.00030684,6]
[327694375,1716323450903,-500.0,0.00030684,6]
[327694377,1716323450913,-601.99,0.00030684,6]
[327694379,1716323450922,-512.35,0.00030684,6]
[327694380,1716323450932,-278.32674453,0.00030684,6]
[327694382,1716323450942,-500.0,0.00030684,6]
[327694384,1716323450953,-818.59,0.00030684,6]
[327694385,1716323450963,-500.0,0.00030684,6]
[327694387,1716323450973,-555.59,0.00030684,6]
[327694389,1716323450983,-500.0,0.00030684,6]
[327694390,1716323450992,-151.0,0.00030684,7]
[327694392,1716323451002,-151.0,0.00030684,7]
[327694394,1716323451012,-356.68,0.00030684,6]
[327694395,1716323451022,-500.0,0.00030684,6]
[327694397,1716323451032,-226.85383154,0.00030684,6]
[327694399,1716323451042,-500.0,0.00030684,6]
[327694401,1716323451053,-500.0,0.00030684,6]
[327694402,1716323451063,-508.19,0.00030684,6]
[327694404,1716323451072,-302.60696792,0.00030684,6]
[327694406,1716323451085,-500.0,0.00030684,6]
[327694407,1716323451095,-151.0,0.00030684,7]
[327694409,1716323451104,-500.0,0.00030684,6]
[327694411,1716323451119,-500.0,0.00030684,6]
[327694413,1716323451128,-495.7676894,0.00030684,6]
[327694414,1716323451137,-175.25,0.00030684,6]
[327694416,1716323451147,-500.0,0.00030684,6]
[327694418,1716323451158,-500.0,0.00030684,6]
[327694419,1716323451168,-151.0,0.00030684,7]
[327694421,1716323451178,-763.03,0.00030684,6]
[327694423,1716323451188,-500.0,0.00030684,6]
[327694424,1716323451200,-506.41,0.00030684,6]
[327694426,1716323451210,-500.0,0.00030684,6]
[327694428,1716323451220,-500.0,0.00030684,6]
[327694429,1716323451229,-500.0,0.00030684,6]
[327694431,1716323451239,-500.0,0.00030684,6]
[327694433,1716323451249,-151.0,0.00030684,7]
[327694434,1716323451258,-500.0,0.00030684,6]
[327694436,1716323451268,-151.0,0.00030684,7]
[327694438,1716323451278,-500.0,0.00030684,6]
[327694439,1716323451288,-373.43,0.00030684,6]
[327694441,1716323451298,-500.0,0.00030684,6]
[327694443,1716323451308,-500.0,0.00030684,6]
[327694444,1716323451319,-151.0,0.00030684,7]
[327694446,1716323451331,-500.0,0.00030684,6]
[327694448,1716323451341,-500.0,0.00030684,6]
[327694449,1716323451351,-500.0,0.00030684,6]
[327694451,1716323451361,-500.0,0.00030684,6]
[327694453,1716323451371,-500.0,0.00030684,6]
[327694455,1716323451381,-151.0,0.00030684,7]
[327694456,1716323451391,-500.0,0.00030684,6]
[327694458,1716323451401,-500.0,0.00030684,6]
[327694460,1716323451412,-500.0,0.00030684,6]
[327694461,1716323451422,-500.0,0.00030684,6]
[327694463,1716323451432,-500.0,0.00030684,6]
[327694465,1716323451441,-735.13,0.00030684,6]
[327694467,1716323451451,-500.0,0.00030684,6]
[327694468,1716323451461,-500.0,0.00030684,6]
[327694470,1716323451471,-421.56513592,0.00030684,6]
[327694472,1716323451482,-500.0,0.00030684,6]
[327694475,1716323451492,-500.0,0.00030684,6]
[327694477,1716323451502,-500.0,0.00030684,6]
[327694479,1716323451512,-151.0,0.00030684,7]
[327694481,1716323451521,-500.0,0.00030684,6]
[327694482,1716323451531,-837.11,0.00030684,6]
[327694483,1716323451541,-500.0,0.00030684,6]
[327694484,1716323451551,-699.83,0.00030684,6]
[327694485,1716323451561,-500.0,0.00030684,6]
[327694486,1716323451570,-500.0,0.00030684,6]
[327694487,1716323451582,-151.0,0.00030684,7]
[327694488,1716323451592,-570.31,0.00030684,6]
[327694489,1716323451602,-565.06,0.00030684,6]
[327694490,1716323451611,-866.24,0.00030684,6]
[327694491,1716323451621,-506.69,0.00030684,6]
[327694492,1716323451631,-500.0,0.00030684,6]
[327694493,1716323451641,-500.0,0.00030684,6]
[327694494,1716323451651,-500.0,0.00030684,6]
[327694495,1716323451661,-500.0,0.00030684,6]
[327694496,1716323451671,-500.0,0.00030684,6]
[327694497,1716323451681,-500.0,0.00030684,6]
[327694498,1716323451690,-935.83,0.00030684,6]
[327694500,1716323451700,-151.0,0.00030684,7]
[327694501,1716323451710,-500.0,0.00030684,6]
[327694503,1716323451720,-500.0,0.00030684,6]
[327694505,1716323451730,-692.23,0.00030684,6]
[327694507,1716323451740,-500.0,0.00030684,6]
[327694509,1716323451750,-154.37,0.00030684,6]
[327694511,1716323451759,-151.0,0.00030684,7]
[327694513,1716323451770,-151.0,0.00030684,7]
[327694515,1716323451781,-151.0,0.00030684,7]
[327694517,1716323451790,-500.0,0.00030684,6]
[327694520,1716323451800,-151.0,0.00030684,7]
[327694522,1716323451810,-1490.7361589,0.00030684,6]
[327694590,1716323452446,-365.0,0.00030684,6]
[327694596,1716323452489,-595.3338411,0.00030684,6]
[327694598,1716323452499,-151.0,0.00030684,7]
[327694600,1716323452508,-84.69037372,0.00030684,7]
[327694603,1716323452532,-66.30962628,0.00030684,7]
[327694605,1716323452541,-532.36726295,0.00030684,6]
[327694607,1716323452553,-159.32273705,0.00030684,6]
[327694609,1716323452562,-513.48,0.00030684,6]
[327694612,1716323452572,-500.0,0.00030684,6]
[327694613,1716323452584,-40.58937177,0.00030684,6]
[327694616,1716323452595,-459.41062823,0.00030684,6]
[327694618,1716323452604,-175.11,0.00030684,6]
[327694620,1716323452613,-500.0,0.00030684,6]
[327694622,1716323452623,-593.58,0.00030684,6]
[327694624,1716323452632,-500.0,0.00030684,6]
[327694626,1716323452641,-500.0,0.00030684,6]
[327694628,1716323452651,-150.0,0.00030684,6]
[327694630,1716323452660,-128.9955219,0.00030684,6]
[327694632,1716323452672,-409.6944781,0.00030684,6]
[327694634,1716323452681,-272.17619944,0.00030684,6]
[327694718,1716323453464,-1360.19065266,0.00013873,2]
[327694720,1716323453474,-20217.3428358,0.00013873,2]
[327694722,1716323453484,-500.0,0.0003041,6]
[327694724,1716323453493,-376.07380056,0.00030684,6]
[327694726,1716323453503,-500.0,0.00030684,6]
[327694728,1716323453512,-500.0,0.00030684,6]
[327694730,1716323453521,-545.11,0.00030684,6]
[327694732,1716323453530,-500.0,0.00030684,6]
[327694734,1716323453539,-664.05,0.00030684,6]
[327694736,1716323453548,-500.0,0.00030684,6]
[327694738,1716323453558,-520.73,0.00030684,6]
[327694740,1716323453567,-151.0,0.00030684,7]
[327694742,1716323453576,-244.7,0.00030684,6]
[327694744,1716323453586,-604.04,0.00030684,6]
[327694745,1716323453595,-201.380404,0.00030684,7]
[327694748,1716323453605,-151.0,0.00030684,7]
[327694750,1716323453614,-500.0,0.00030684,6]
[327694751,1716323453624,-151.0,0.00030684,7]
[327694753,1716323453634,-185.67,0.00030684,6]
[327694756,1716323453643,-500.0,0.00030684,6]
[327694758,1716323453653,-512.68,0.00030684,6]
[327694760,1716323453664,-500.0,0.00030684,6]
[327694762,1716323453674,-500.0,0.00030684,6]
[327694764,1716323453683,-151.0,0.00030684,7]
[327694766,1716323453692,-500.0,0.00030684,6]
[327694768,1716323453702,-500.0,0.00030684,6]
[327694770,1716323453712,-151.0,0.00030684,7]
[327694772,1716323453721,-151.0,0.00030684,7]
[327694774,1716323453731,-537.29,0.00030684,6]
[327694776,1716323453740,-781.31,0.00030684,6]
[327694778,1716323453750,-46.18457451,0.00030684,6]
[327694780,1716323453762,-386.31542549,0.00030684,6]
[327694782,1716323453772,-151.0,0.00030684,7]
[327694784,1716323453781,-500.0,0.00030684,6]
[327694786,1716323453792,-500.0,0.00030684,6]
[327694788,1716323453801,-500.0,0.00030684,6]
[327694790,1716323453811,-718.15,0.00030684,6]
[327694792,1716323453820,-500.0,0.00030684,6]
[327694794,1716323453830,-500.0,0.00030684,6]
[327694796,1716323453839,-349.01,0.00030684,6]
[327694798,1716323453848,-492.07,0.00030684,6]
[327694799,1716323453857,-500.0,0.00030684,6]
[327694800,1716323453867,-500.0,0.00030684,6]
[327694801,1716323453876,-500.0,0.00030684,6]
[327694802,1716323453885,-504.66,0.00030684,6]
[327694803,1716323453895,-500.0,0.00030684,6]
[327694804,1716323453904,-151.0,0.00030684,7]
[327694805,1716323453914,-151.0,0.00030684,7]
[327694806,1716323453923,-568.26,0.00030684,6]
[327694807,1716323453932,-500.0,0.00030684,6]
[327694808,1716323453941,-155.52,0.00030684,6]
[327694809,1716323453951,-500.0,0.00030684,6]
[327694811,1716323453961,-556.57,0.00030684,6]
[327694813,1716323453970,-500.0,0.00030684,6]
[327694815,1716323453979,-1224.06,0.00030684,6]
[327694817,1716323453989,-500.0,0.00030684,6]
[327694819,1716323453998,-918.0,0.00030684,6]
[327694821,1716323454008,-500.0,0.00030684,6]
[327694823,1716323454017,-500.0,0.00030684,6]
[327694826,1716323454027,-517.57,0.00030684,6]
[327694828,1716323454037,-406.58,0.00030684,6]
[327694830,1716323454046,-4492.58,0.00030684,6]
[327694832,1716323454055,-500.0,0.00030684,6]
[327694834,1716323454065,-645.33,0.00030684,6]
[327694836,1716323454073,-151.0,0.00030684,7]
[327694837,1716323454083,-172.63,0.00030684,6]
[327694839,1716323454093,-151.0,0.00030684,7]
[327694841,1716323454102,-500.0,0.00030684,6]
[327694844,1716323454112,-500.0,0.00030684,6]
[327694846,1716323454126,-151.0,0.00030684,7]
[327694848,1716323454135,-430.75395629,0.00030684,6]
[327694850,1716323454148,-69.24604371,0.00030684,6]
[327694852,1716323454158,-675.42,0.00030684,6]
[327694854,1716323454167,-151.0,0.00030684,7]
[327694856,1716323454176,-809.04,0.00030684,6]
[327694858,1716323454185,-151.0,0.00030684,7]
[327694860,1716323454197,-500.0,0.00030684,6]
[327694862,1716323454206,-500.0,0.00030684,6]
[327694864,1716323454216,-151.0,0.00030684,7]
[327694866,1716323454225,-628.26,0.00030684,6]
[327694868,1716323454234,-904.2,0.00030684,6]
[327694870,1716323454244,-500.0,0.00030684,6]
[327694872,1716323454253,-976.95,0.00030684,6]
[327694874,1716323454262,-719.69,0.00030684,6]
[327694876,1716323454271,-1232.85,0.00030684,6]
[327694878,1716323454282,-500.0,0.00030684,6]
[327694880,1716323454291,-500.0,0.00030684,6]
[327694882,1716323454300,-420.34,0.00030684,6]
[327694884,1716323454309,-1430.18,0.00030684,6]
[327694886,1716323454319,-151.0,0.00030684,7]
[327694888,1716323454329,-604.7,0.00030684,6]
[327694890,1716323454338,-1127.28,0.00030684,6]
[327694892,1716323454347,-151.0,0.00030684,7]
[327694894,1716323454356,-500.0,0.00030684,6]
[327694896,1716323454366,-500.0,0.00030684,6]
[327694898,1716323454375,-500.0,0.00030684,6]
[327694900,1716323454384,-576.96,0.00030684,6]
[327694902,1716323454393,-552.38,0.00030684,6]
[327694904,1716323454402,-151.0,0.00030684,7]
[327694906,1716323454412,-384.12,0.00030684,6]
[327694908,1716323454421,-2471.64,0.00030684,6]
[327694910,1716323454430,-365.74395629,0.00030684,6]
[327694912,1716323454442,-312.85604371,0.00030684,6]
[327694914,1716323454451,-500.0,0.00030684,6]
[327694916,1716323454460,-491.36494272,0.00030684,6]
[327694919,1716323454480,-970.39531171,0.00013873,2]
[327694921,1716323454489,-123.48505728,0.00030684,6]
[327694923,1716323454497,-500.0,0.00030684,6]
[327694925,1716323454506,-5024.14,0.00030684,6]
[327694927,1716323454515,-108.45898397,0.00030684,6]
[327694929,1716323454527,-391.54101603,0.00030684,6]
[327694931,1716323454536,-500.0,0.00030684,6]
[327694933,1716323454546,-1078.89,0.00030684,6]
[327694935,1716323454555,-6142.72,0.00030684,6]
[327694937,1716323454564,-21071.83,0.00030684,6]
[327694939,1716323454574,-151.0,0.00030684,7]
[327694941,1716323454585,-500.0,0.00030684,6]
[327694944,1716323454596,-267.78,0.00030684,6]
[327694946,1716323454609,-500.0,0.00030684,6]
[327694948,1716323454623,-500.0,0.00030684,6]
[327694951,1716323454636,-500.0,0.00030684,6]
[327694953,1716323454648,-752.19,0.00030684,6]
[327694955,1716323454659,-500.0,0.00030684,6]
[327694958,1716323454670,-3342.28,0.00030684,6]
[327694960,1716323454683,-500.0,0.00030684,6]
[327694962,1716323454695,-500.0,0.00030684,6]
[327694964,1716323454705,-500.0,0.00030684,6]
[327694967,1716323454718,-887.05,0.00030684,6]
[327694969,1716323454729,-151.0,0.00030684,7]
[327694971,1716323454742,-504.7,0.00030684,6]
[327694973,1716323454753,-891.33,0.00030684,6]
[327694976,1716323454766,-500.0,0.00030684,6]
[327694978,1716323454780,-151.0,0.00030684,7]
[327694981,1716323454793,-897.06,0.00030684,6]
[327694983,1716323454805,-500.0,0.00030684,6]
[327694985,1716323454817,-500.0,0.00030684,6]
[327694988,1716323454829,-1584.31,0.00030684,6]
[327694990,1716323454841,-1614.68,0.00030684,6]
[327694992,1716323454852,-1117.13,0.00030684,6]
[327694994,1716323454864,-500.0,0.00030684,6]
[327694996,1716323454876,-500.0,0.00030684,6]
[327694999,1716323454889,-500.0,0.00030684,6]
[327695001,1716323454900,-621.16,0.00030684,6]
[327695003,1716323454911,-1148.92,0.00030684,6]
[327695005,1716323454922,-707.63,0.00030684,6]
[327695007,1716323454932,-500.0,0.00030684,6]
[327695010,1716323454944,-500.0,0.00030684,6]
[327695012,1716323454954,-621.95,0.00030684,6]
[327695014,1716323454966,-3747.18,0.00030684,6]
[327695016,1716323454977,-829.5,0.00030684,6]
[327695018,1716323454989,-500.0,0.00030684,6]
[327695021,1716323455001,-574.65,0.00030684,6]
[327695023,1716323455012,-834.48,0.00030684,6]
[327695025,1716323455024,-1646.43,0.00030684,6]
[327695027,1716323455037,-500.0,0.00030684,6]
[327695030,1716323455049,-1490.94,0.00030684,6]
[327695032,1716323455061,-500.0,0.00030684,6]
[327695034,1716323455072,-151.0,0.00030684,7]
[327695036,1716323455083,-702.63,0.00030684,6]
[327695039,1716323455093,-504.95,0.00030684,6]
[327695041,1716323455103,-151.0,0.00030684,7]
[327695043,1716323455120,-500.0,0.00030684,6]
[327695044,1716323455131,-1185.25,0.00030684,6]
[327695045,1716323455143,-961.76,0.00030684,6]
[327695046,1716323455155,-2129.79,0.00030684,6]
[327695047,1716323455168,-958.66,0.00030684,6]
[327695048,1716323455179,-403.91,0.00030684,6]
[327695049,1716323455190,-920.09,0.00030684,6]
[327695050,1716323455200,-151.93474,0.00030684,7]
[327695051,1716323455211,-500.0,0.00030684,6]
[327695052,1716323455223,-11206.71,0.00030684,6]
[327695053,1716323455235,-500.0,0.00030684,6]
[327695054,1716323455245,-151.0,0.00030684,7]
[327695055,1716323455256,-1645.35,0.00030684,6]
[327695056,1716323455266,-543.1,0.00030684,6]
[327695057,1716323455276,-151.845761,0.00030684,7]
[327695058,1716323455286,-500.0,0.00030684,6]
[327695059,1716323455296,-1090.12,0.00030684,6]
[327695060,1716323455307,-1662.85,0.00030684,6]
[327695061,1716323455320,-1364.0,0.00030684,6]
[327695062,1716323455331,-500.0,0.00030684,6]
[327695063,1716323455342,-500.0,0.00030684,6]
[327695064,1716323455353,-368.38,0.00030684,6]
[327695065,1716323455363,-500.0,0.00030684,6]
[327695066,1716323455374,-619.19,0.00030684,6]
[327695067,1716323455385,-500.0,0.00030684,6]
[327695068,1716323455396,-500.0,0.00030684,6]
[327695069,1716323455407,-500.0,0.00030684,6]
[327695070,1716323455417,-500.0,0.00030684,6]
[327695071,1716323455428,-500.0,0.00030684,6]
[327695072,1716323455439,-1598.16,0.00030684,6]
[327695073,1716323455449,-993.87,0.00030684,6]
[327695074,1716323455460,-151.0,0.00030684,7]
[327695075,1716323455471,-1887.1,0.00030684,6]
[327695076,1716323455481,-1384.06,0.00030684,6]
[327695077,1716323455492,-500.0,0.00030684,6]
[327695078,1716323455503,-4133.65,0.00030684,6]
[327695079,1716323455514,-594.73,0.00030684,6]
[327695080,1716323455526,-500.0,0.00030684,6]
[327695081,1716323455537,-1174.39,0.00030684,6]
[327695082,1716323455548,-3391.37,0.00030684,6]
[327695083,1716323455559,-1842.1,0.00030684,6]
[327695084,1716323455570,-500.0,0.00030684,6]
[327695085,1716323455581,-873.31,0.00030684,6]
[327695086,1716323455592,-500.0,0.00030684,6]
[327695087,1716323455603,-566.08,0.00030684,6]
[327695088,1716323455614,-12110.61,0.00030684,6]
[327695089,1716323455625,-1055.36,0.00030684,6]
[327695090,1716323455635,-951.4,0.00030684,6]
[327695091,1716323455646,-1653.77,0.00030684,6]
[327695092,1716323455658,-1971.21,0.00030684,6]
[327695093,1716323455669,-500.0,0.00030684,6]
[327695094,1716323455680,-181.23758,0.00030684,7]
[327695095,1716323455691,-1710.36,0.00030684,6]
[327695096,1716323455701,-181.23758,0.00030684,7]
[327695097,1716323455712,-500.0,0.00030684,6]
[327695098,1716323455723,-500.0,0.00030684,6]
[327695099,1716323455734,-3241.48,0.00030684,6]
[327695100,1716323455745,-500.0,0.00030684,6]
[327695101,1716323455756,-500.0,0.00030684,6]
[327695102,1716323455767,-1778.86,0.00030684,6]
[327695103,1716323455778,-500.0,0.00030684,6]
[327695104,1716323455789,-1375.35,0.00030684,6]
[327695105,1716323455799,-602.96,0.00030684,6]
[327695106,1716323455810,-1646.54,0.00030684,6]
[327695107,1716323455820,-500.0,0.00030684,6]
[327695108,1716323455831,-500.0,0.00030684,6]
[327695109,1716323455842,-2506.3,0.00030684,6]
[327695110,1716323455852,-500.0,0.00030684,6]
[327695111,1716323455863,-783.75,0.00030684,6]
[327695112,1716323455874,-656.64,0.00030684,6]
[327695113,1716323455885,-1313.48,0.00030684,6]
[327695114,1716323455895,-151.0,0.00030684,7]
[327695115,1716323455905,-500.0,0.00030684,6]
[327695116,1716323455916,-166.452584,0.00030684,7]
[327695117,1716323455926,-500.0,0.00030684,6]
[327695118,1716323455936,-509.55,0.00030684,6]
[327695119,1716323455947,-817.08,0.00030684,6]
[327695120,1716323455957,-500.0,0.00030684,6]
[327695121,1716323455967,-500.0,0.00030684,6]
[327695122,1716323455978,-500.0,0.00030684,6]
[327695123,1716323455989,-500.0,0.00030684,6]
[327695124,1716323456000,-1800.26,0.00030684,6]
[327695125,1716323456010,-156.211036,0.00030684,7]
[327695126,1716323456020,-28783.97,0.00030684,6]
[327695127,1716323456031,-500.0,0.00030684,6]
[327695128,1716323456042,-1150.52,0.00030684,6]
[327695129,1716323456053,-500.0,0.00030684,6]
[327695130,1716323456063,-500.0,0.00030684,6]
[327695131,1716323456073,-1648.87,0.00030684,6]
[327695132,1716323456084,-500.0,0.00030684,6]
[327695133,1716323456095,-500.0,0.00030684,6]
[327695134,1716323456106,-500.0,0.00030684,6]
[327695135,1716323456118,-151.0,0.00030684,7]
[327695136,1716323456131,-693.04,0.00030684,6]
[327695137,1716323456142,-500.0,0.00030684,6]
[327695138,1716323456152,-301.57933065,0.00030684,6]
[327695139,1716323456163,-151.0,0.00030684,7]
[327695140,1716323456174,-561.63062364,0.00030684,6]
[327695141,1716323456184,-1327.91,0.00030684,6]
[327695142,1716323456197,-500.0,0.00030684,6]
[327695143,1716323456208,-1134.84,0.00030684,6]
[327695144,1716323456218,-11496.05,0.00030684,6]
[327695145,1716323456229,-151.0,0.00030684,7]
[327695146,1716323456240,-500.0,0.00030684,6]
[327695147,1716323456250,-500.0,0.00030684,6]
[327695148,1716323456260,-500.0,0.00030684,6]
[327695149,1716323456271,-3030.93,0.00030684,6]
[327695150,1716323456281,-500.0,0.00030684,6]
[327695151,1716323456292,-500.0,0.00030684,6]
[327695152,1716323456303,-500.0,0.00030684,6]
[327695153,1716323456313,-699.05,0.00030684,6]
[327695154,1716323456324,-1019.99,0.00030684,6]
[327695155,1716323456337,-151.0,0.00030684,7]
[327695156,1716323456348,-500.0,0.00030684,6]
[327695157,1716323456359,-500.0,0.00030684,6]
[327695158,1716323456371,-912.16,0.00030684,6]
[327695159,1716323456381,-500.0,0.00030684,6]
[327695160,1716323456392,-500.0,0.00030684,6]
[327695161,1716323456402,-3151.79,0.00030684,6]
[327695162,1716323456413,-1013.65,0.00030684,6]
[327695163,1716323456424,-151.0,0.00030684,7]
[327695164,1716323456435,-500.0,0.00030684,2]
[327695165,1716323456445,-500.0,0.00030684,6]
[327695166,1716323456457,-151.0,0.00030684,7]
[327695167,1716323456468,-500.0,0.00030684,6]
[327695168,1716323456479,-500.0,0.00030684,6]
[327695169,1716323456489,-151.0,0.00030684,7]
[327695170,1716323456500,-200.0,0.000307,2]
[327695171,1716323456510,-1000.0,0.000307,15]
[327695172,1716323456521,-500.0,0.000307,2]
[327695173,1716323456532,-150.0,0.00030719,2]
[327695174,1716323456542,-10000.0,0.00030758,2]
[327695175,1716323456553,-150.0,0.00030777,2]
[327695176,1716323456564,-175.28423006,0.00030789,7]
[327695177,1716323456575,-150.0,0.00030796,2]
[327695178,1716323456587,-800.0,0.000308,11]
[327695179,1716323456598,-388.9,0.00030823,2]
[327695180,1716323456609,-150.0,0.00030825,2]
[327695181,1716323456620,-450.0,0.00030851,5]
[327695182,1716323456631,-150.0,0.00030884,2]
[327695183,1716323456642,-150.0,0.0003089,2]
[327695184,1716323456652,-1100.0,0.000309,11]
[327695185,1716323456661,-224.0,0.000309,2]
[327695186,1716323456670,-151.0,0.00030947,7]
[327695187,1716323456680,-151.0,0.00030947,7]
[327695188,1716323456689,-151.0,0.00030947,7]
[327695189,1716323456698,-151.0,0.00030947,7]
[327695190,1716323456708,-12263.006021,0.00030947,2]
[327695191,1716323456718,-151.0,0.00030947,7]
[327695192,1716323456727,-151.0,0.00030947,7]
[327695193,1716323456736,-151.0,0.00030947,7]
[327695194,1716323456745,-151.0,0.00030947,7]
[327695195,1716323456754,-151.0,0.00030947,7]
[327695196,1716323456764,-212.964136,0.00030947,7]
[327695197,1716323456773,-1294.7673577,0.00030947,2]
[327695198,1716323456783,-151.0,0.00030947,7]
[327695199,1716323456793,-151.0,0.00030947,7]
[327695200,1716323456803,-151.0,0.00030947,7]
[327695201,1716323456812,-151.0,0.00030947,7]
[327695202,1716323456822,-151.0,0.00030947,7]
[327695203,1716323456833,-151.0,0.00030947,7]
[327695204,1716323456842,-151.0,0.00030947,7]
[327695205,1716323456852,-151.0,0.00030947,7]
[327695206,1716323456861,-151.0,0.00030947,7]
[327695207,1716323456872,-151.0,0.00030947,7]
[327695208,1716323456881,-151.0,0.00030947,7]
[327695209,1716323456890,-150.01,0.00030957,2]
[327695210,1716323456899,-5871.71100266,0.00030957,2]
[327695211,1716323456909,-628.38,0.00030957,6]
[327695212,1716323456918,-628.38,0.00030957,6]
[327695213,1716323456927,-628.38,0.00030957,6]
[327695214,1716323456937,-628.38,0.00030957,6]
[327695215,1716323456946,-628.43112569,0.00030957,6]
[327695216,1716323456956,-150.0,0.00030957,10]
[327695217,1716323456966,-113366.64547136,0.00030958,21]
[327695218,1716323456975,-500.0,0.00030958,6]
[327695219,1716323456985,-500.0,0.00030958,6]
[327695220,1716323456994,-411.22086828,0.00030958,6]